[Event "Turkey IS Bank Super League 2017"]
[Site "Darica-Kocaeli"]
[Date "2017.07.30"]
[Round "5"]
[White "Kaplan, Ebru"]
[Black "Isgandarova, Khayala"]
[Result "1-0"]
[ECO "C08"]
[WhiteElo "2022"]
[BlackElo "2257"]
[Annotator "NA"]
[PlyCount "175"]
[EventType "team-tourn"]
[EventCountry "TUR"]
[SourceTitle "playchess.com"]
[Source "ChessBase"]
[SourceQuality "1"]
[TimeControl "40/5400+30:1800+30"]

1. e4 {[%emt 0:00:30]} e6 {[%emt 0:01:00]} 2. d4 {[%emt 0:00:30]} d5 {[%emt 0:00:30]} 3. Nd2 {[%emt 0:00:30]} c5 {[%emt 0:00:30]} 4. Ngf3 {[%emt 0:04:30]} Nc6 {[%emt 0:03:30]} 5. exd5 {[%emt 0:00:30]} exd5 {[%emt 0:01:30]} 6. Bb5 {[%emt 0:00:30]} Bd6 {[%emt 0:12:30]} 7. dxc5 {[%emt 0:01:30]} Bxc5 {[%emt 0:00:30]} 8. O-O {[%emt 0:00:30]} Nf6 {[%emt 0:04:30] LiveBook: 8 Games} 9. Nb3 {[%emt 0:07:30]} Be7 {[%emt 0:01:30]} 10. c3 {[%emt 0:04:30]} O-O $11 {[%emt 0:01:30]} 11. Be3 {[%emt 0:09:30]} Bg4 {[%emt 0:10:30]} 12. Be2 {[%emt 0:02:30]} Ne4 {[%emt 0:04:30]} 13. Nfd4 {[%emt 0:04:30]} Bd7 {[%emt 0:02:30]} 14. Qc2 {[%emt 0:05:30]} Rc8 {[%emt 0:03:30]} 15. Rad1 {[%emt 0:03:30]} Bd6 {[%emt 0:19:30]} 16. Nf3 {[%emt 0:17:30]} Bf5 {[%emt 0:12:47]} 17. Qc1 {[%emt 0:09:30]} a6 {[%emt 0:09:01]} 18. Bf4 {[%emt 0:05:30]} Nb4 {[%emt 0:05:23]} 19. Bxd6 {[%emt 0:06:06]} Qxd6 {[%emt 0:00:33]} 20. Nfd4 {[%emt 0:02:07]} Bg6 {[%emt 0:00:56]} 21. a3 {[%emt 0:02:33]} Nc6 {[%emt 0:00:36]} 22. f3 {[%emt 0:03:28]} Nf6 {[%emt 0:00:58]} 23. Bd3 {[%emt 0:01:32]} Bxd3 {[%emt 0:01:05]} 24. Rxd3 {[%emt 0:00:30]} Ne5 {[%emt 0:00:00]} 25. Rdd1 {[%emt 0:01:23]} Rfe8 {[%emt 0:00:24]} 26. Nf5 {[%emt 0:02:09]} Qf8 {[%emt 0:02:46]} 27. Qg5 {[%emt 0:02:30]} Kh8 {[%emt 0:00:05]} 28. Nbd4 {[%emt 0:00:40]} Nc4 {[%emt 0:00:53]} 29. Rf2 {[%emt 0:00:31]} Nd7 {[%emt 0:00:46]} 30. h4 {[%emt 0:01:33]} f6 {[%emt 0:00:30]} 31. Qf4 {[%emt 0:00:34]} Nc5 {[%emt 0:00:32]} 32. h5 {[%emt 0:00:33]} Ne5 {[%emt 0:00:25]} 33. Rfd2 {[%emt 0:00:39]} Nc4 {[%emt 0:00:53]} 34. Rf2 {[%emt 0:00:05]} Ne5 {[%emt 0:00:00]} 35. Qg3 {[%emt 0:00:48]} Rc7 {[%emt 0:00:53]} 36. Qh4 {[%emt 0:00:37]} Ned3 {[%emt 0:00:48]} 37. Rfd2 {[%emt 0:00:11]} Ne5 {[%emt 0:00:01]} 38. Kh1 {[%emt 0:00:33]} Nc4 {[%emt 0:00:36]} 39. Rf2 {[%emt 0:00:16]} Ne5 {[%emt 0:00:29]} 40. Rfd2 {[%emt 0:00:00]} Kg8 {[%emt 0:01:10]} 41. Re2 {[%emt 0:11:12]} g6 {[%emt 0:07:30]} 42. Qg3 {[%emt 0:03:40]} Kh8 {[%emt 0:02:30]} 43. Nh4 {[%emt 0:03:13]} Qh6 {[%emt 0:05:38]} 44. Qh2 {[%emt 0:07:56]} Qxh5 {[%emt 0:06:00]} 45. g4 {[%emt 0:00:08]} Qg5 {[%emt 0:04:01]} 46. f4 {[%emt 0:00:54]} Qxg4 {[%emt 0:00:18]} 47. Rg1 {[%emt 0:04:38]} Qh5 {[%emt 0:01:39]} 48. fxe5 {[%emt 0:00:04]} g5 {[%emt 0:05:52]} 49. Nhf3 {[%emt 0:02:28]} Qxh2+ {[%emt 0:00:05]} 50. Kxh2 {[%emt 0:00:00]} fxe5 {[%emt 0:00:30]} 51. Rxg5 {[%emt 0:01:18]} Rf8 {[%emt 0:00:56]} 52. Rgxe5 {[%emt 0:00:35]} Nd3 {[%emt 0:00:20]} 53. Re8 {[%emt 0:00:40]} Rcf7 {[%emt 0:00:23]} 54. Ng5 {[%emt 0:00:54]} Rf6 {[%emt 0:00:24]} 55. Rxf8+ {[%emt 0:00:45]} Rxf8 {[%emt 0:00:04]} 56. Rd2 {[%emt 0:00:14]} Nf4 {[%emt 0:00:44]} 57. Nde6 {[%emt 0:00:30]} Rf5 {[%emt 0:00:42]} 58. Nxf4 {[%emt 0:00:40]} Rxf4 {[%emt 0:00:30]} 59. Ne6 {[%emt 0:00:00]} Rf5 {[%emt 0:00:26]} 60. Nc7 {[%emt 0:00:04]} Kg7 {[%emt 0:00:48]} 61. Nxd5 {[%emt 0:00:14]} Kf7 {[%emt 0:00:00]} 62. Kg3 {[%emt 0:00:34]} Ke6 {[%emt 0:00:03]} 63. Nf4+ {[%emt 0:00:27]} Ke7 {[%emt 0:00:04]} 64. Kg4 {[%emt 0:00:37]} Rc5 {[%emt 0:00:56]} 65. Rd4 {[%emt 0:00:25]} Re5 {[%emt 0:00:22]} 66. Rd2 {[%emt 0:00:46]} Rc5 {[%emt 0:00:17]} 67. Rh2 {[%emt 0:00:00]} Kd6 {[%emt 0:00:31]} 68. Rxh7 {[%emt 0:00:38]} Rb5 {[%emt 0:00:06]} 69. Rh2 {[%emt 0:01:12]} Kc5 {[%emt 0:00:36]} 70. Ne6+ {[%emt 0:01:13]} Kc4 {[%emt 0:00:16]} 71. Nd4 {[%emt 0:00:36]} Re5 {[%emt 0:00:51]} 72. Kf4 {[%emt 0:00:01]} Re7 {[%emt 0:00:00]} 73. Nf5 {[%emt 0:00:08]} Re6 {[%emt 0:00:10]} 74. Rd2 {[%emt 0:00:17]} b5 {[%emt 0:01:42]} 75. Nd4 {[%emt 0:00:44]} Re1 {[%emt 0:00:35]} 76. Kf3 {[%emt 0:01:09]} a5 {[%emt 0:01:03]} 77. Re2 {[%emt 0:00:19]} Rd1 {[%emt 0:00:06]} 78. Nc6 {[%emt 0:00:45]} a4 {[%emt 0:01:04]} 79. Nd4 {[%emt 0:00:31]} Rd3+ {[%emt 0:00:48]} 80. Ke4 {[%emt 0:00:22]} Rh3 {[%emt 0:00:32]} 81. Rf2 {[%emt 0:00:32]} Rh4+ {[%emt 0:00:14]} 82. Ke5 {[%emt 0:00:36]} Rh5+ {[%emt 0:00:39]} 83. Kd6 {[%emt 0:00:18]} Rh6+ {[%emt 0:00:40]} 84. Kc7 {[%emt 0:00:13]} Rg6 {[%emt 0:00:00]} 85. Rf5 {[%emt 0:00:41]} Rg7+ {[%emt 0:00:53]} 86. Kb6 {[%emt 0:00:48]} b4 {[%emt 0:00:37]} 87. axb4 {[%emt 0:00:27]} a3 {[%emt 0:00:15]} 88. Rc5+ {[%emt 0:00:06]} 1-0

[Event "Turkey IS Bank Super League 2017"]
[Site "Darica-Kocaeli"]
[Date "2017.07.30"]
[Round "5"]
[White "Unat, Can Haktan"]
[Black "Bozbey, Ali"]
[Result "0-1"]
[ECO "B07"]
[WhiteElo "2006"]
[BlackElo "2139"]
[Annotator "NA"]
[PlyCount "140"]
[EventType "team-tourn"]
[EventCountry "TUR"]
[SourceTitle "playchess.com"]
[Source "ChessBase"]
[SourceQuality "1"]
[TimeControl "40/5400+30:1800+30"]

1. e4 {[%emt 0:00:30]} d6 {[%emt 0:01:00]} 2. d4 {[%emt 0:01:30]} Nf6 {[%emt 0:00:30]} 3. Bd3 {[%emt 0:02:30]} e5 {[%emt 0:01:30]} 4. c3 {[%emt 0:02:30]} Nc6 {[%emt 0:01:30]} 5. Ne2 {[%emt 0:02:30]} Be7 {[%emt 0:04:30]} 6. d5 {[%emt 0:02:30]} Nb8 {[%emt 0:00:00]} 7. c4 {[%emt 0:01:30]} a5 {[%emt 0:07:00]} 8. b3 {[%emt 0:01:30]} Na6 $14 {[%emt 0:00:30]} 9. Nbc3 {[%emt 0:05:30]} Nc5 {[%emt 0:03:30]} 10. O-O {[%emt 0:01:30]} Nh5 {[%emt 0:02:30]} 11. a3 {[%emt 0:11:30]} Bg5 {[%emt 0:03:30]} 12. Kh1 {[%emt 0:11:30]} O-O {[%emt 0:11:30]} 13. Bxg5 {[%emt 0:01:30]} Qxg5 {[%emt 0:00:30]} 14. Nb5 {[%emt 0:00:30]} Qe7 {[%emt 0:03:30]} 15. Rc1 {[%emt 0:00:30]} f5 {[%emt 0:08:30]} 16. exf5 {[%emt 0:05:30]} Nxd3 {[%emt 0:02:30]} 17. Qxd3 {[%emt 0:00:30]} Bxf5 {[%emt 0:00:00]} 18. Qe3 {[%emt 0:00:00]} c6 {[%emt 0:03:00]} 19. Nbc3 {[%emt 0:11:00]} Nf6 {[%emt 0:04:30]} 20. Rcd1 {[%emt 0:02:30]} Bc2 {[%emt 0:00:30]} 21. Rc1 {[%emt 0:14:00]} Bxb3 {[%emt 0:02:30]} 22. Nb1 {[%emt 0:02:47]} Ba2 {[%emt 0:00:30]} 23. dxc6 {[%emt 0:01:49]} bxc6 {[%emt 0:00:30]} 24. f3 {[%emt 0:00:12]} Bxb1 {[%emt 0:03:30]} 25. Rxb1 {[%emt 0:00:30]} Rab8 {[%emt 0:00:30]} 26. Rbd1 {[%emt 0:01:47]} Qc7 {[%emt 0:03:30]} 27. Ng3 {[%emt 0:00:50]} d5 {[%emt 0:02:30]} 28. cxd5 {[%emt 0:01:26]} cxd5 {[%emt 0:00:30]} 29. Rc1 {[%emt 0:00:00]} Qe7 {[%emt 0:01:30]} 30. Nf5 {[%emt 0:00:44]} Qe6 {[%emt 0:01:30]} 31. Nd4 {[%emt 0:07:02]} Qb6 {[%emt 0:00:30]} 32. Qxe5 {[%emt 0:02:15]} Rbe8 {[%emt 0:00:30]} 33. Qf4 {[%emt 0:00:18]} Ne4 {[%emt 0:00:30]} 34. Qh4 {[%emt 0:00:36]} Qxd4 {[%emt 0:00:00]} 35. fxe4 {[%emt 0:00:07]} dxe4 {[%emt 0:01:00]} 36. Rfd1 {[%emt 0:02:39]} Qe5 {[%emt 0:00:30]} 37. Re1 {[%emt 0:02:13]} e3 {[%emt 0:03:30]} 38. Qc4+ {[%emt 0:00:30]} Kh8 {[%emt 0:00:00]} 39. Qg4 {[%emt 0:00:44]} e2 {[%emt 0:00:00]} 40. Qg3 {[%emt 0:00:34]} Qb5 {[%emt 0:00:30]} 41. h3 {[%emt 0:06:27]} Qb2 {[%emt 0:00:30]} 42. Qd3 {[%emt 0:03:30]} a4 {[%emt 0:05:30]} 43. Rb1 {[%emt 0:03:50]} Qe5 {[%emt 0:03:30]} 44. Rg1 {[%emt 0:09:27]} Qf4 {[%emt 0:01:30]} 45. Rbe1 {[%emt 0:01:40]} Re3 {[%emt 0:00:30]} 46. Qd7 {[%emt 0:02:36]} Qe4 {[%emt 0:01:30]} 47. Kh2 {[%emt 0:04:23]} Qe5+ {[%emt 0:00:30]} 48. Kh1 {[%emt 0:00:00]} Rxa3 {[%emt 0:00:30]} 49. Qg4 {[%emt 0:00:47]} Re8 {[%emt 0:00:30]} 50. Qb4 {[%emt 0:00:36]} Ra2 {[%emt 0:03:30]} 51. Qc4 {[%emt 0:00:35]} Qe6 {[%emt 0:00:30]} 52. Qb4 {[%emt 0:00:40]} Qe4 {[%emt 0:01:30]} 53. Qc3 {[%emt 0:01:35]} Rc2 {[%emt 0:00:00]} 54. Qa5 {[%emt 0:00:26]} Ra8 {[%emt 0:01:00]} 55. Qb5 {[%emt 0:01:36]} a3 {[%emt 0:00:00]} 56. Ra1 {[%emt 0:00:07]} Rc3 {[%emt 0:00:00]} 57. Qh5 {[%emt 0:00:52]} Ra5 {[%emt 0:05:30]} 58. Rgb1 {[%emt 0:00:25]} Ra8 {[%emt 0:01:30]} 59. Re1 {[%emt 0:00:08]} Re8 {[%emt 0:01:30]} 60. Ra2 {[%emt 0:00:16]} Re3 {[%emt 0:00:00]} 61. Rd2 {[%emt 0:00:23]} g6 {[%emt 0:02:00]} 62. Qh6 {[%emt 0:00:20]} Qb4 {[%emt 0:00:00]} 63. Qg5 {[%emt 0:02:39]} Qxd2 {[%emt 0:00:00]} 64. Qf6+ {[%emt 0:00:14]} Kg8 {[%emt 0:00:30]} 65. Qh4 {[%emt 0:00:00]} Qxe1+ {[%emt 0:01:30]} 66. Qxe1 {[%emt 0:00:18]} Rd3 {[%emt 0:00:00]} 67. Kh2 {[%emt 0:00:22]} Rd1 {[%emt 0:00:00]} 68. Qb4 {[%emt 0:00:50]} e1=Q {[%emt 0:00:00]} 69. Qb3+ {[%emt 0:00:20]} Kh8 {[%emt 0:00:00]} 70. h4 {[%emt 0:00:21]} Qxh4+ {[%emt 0:00:00]} 0-1

[Event "Turkey IS Bank Super League 2017"]
[Site "Darica-Kocaeli"]
[Date "2017.07.30"]
[Round "5"]
[White "Gundogan, Sinem Cagla"]
[Black "Arda, Cagil Irmak"]
[Result "0-1"]
[ECO "C02"]
[WhiteElo "2000"]
[BlackElo "2080"]
[Annotator "NA"]
[PlyCount "54"]
[EventType "team-tourn"]
[EventCountry "TUR"]
[SourceTitle "playchess.com"]
[Source "ChessBase"]
[SourceQuality "1"]
[TimeControl "40/5400+30:1800+30"]

1. e4 {[%emt 0:00:30]} e6 {[%emt 0:02:00]} 2. d4 {[%emt 0:02:30]} d5 {[%emt 0:00:30]} 3. e5 {[%emt 0:00:30]} c5 {[%emt 0:00:30]} 4. c3 {[%emt 0:00:30]} Qb6 {[%emt 0:00:00]} 5. Nf3 {[%emt 0:00:30]} Nc6 {[%emt 0:00:00]} 6. a3 {[%emt 0:00:00]} Nh6 {[%emt 0:00:00]} 7. b4 {[%emt 0:02:00]} cxd4 {[%emt 0:00:00]} 8. cxd4 {[%emt 0:00:30]} Nf5 {[%emt 0:00:00]} 9. Be3 {[%emt 0:02:30]} f6 {[%emt 0:00:00]} 10. exf6 {[%emt 0:04:30]} gxf6 {[%emt 0:00:00]} 11. Nc3 {[%emt 0:04:30]} Nxe3 {[%emt 0:01:00]} 12. fxe3 $11 {[%emt 0:00:00]} Bh6 {[%emt 0:00:00]} 13. Qd3 {[%emt 0:04:00]} Ne7 {[%emt 0:06:00]} 14. Be2 {[%emt 0:13:30]} a5 {[%emt 0:09:30]} 15. b5 {[%emt 0:16:30]} Bd7 {[%emt 0:13:30]} 16. O-O {[%emt 0:06:30]} O-O {[%emt 0:02:30]} 17. e4 {[%emt 0:08:30]} Rac8 {[%emt 0:06:30]} 18. Na4 {[%emt 0:08:30]} Qd8 {[%emt 0:01:30]} 19. e5 {[%emt 0:04:46]} Ng6 {[%emt 0:09:30]} 20. Nc5 {[%emt 0:03:09]} fxe5 {[%emt 0:02:30]} 21. Nxe5 {[%emt 0:07:05]} Nxe5 {[%emt 0:00:30]} 22. Qh3 {[%emt 0:00:17]} Qg5 {[%emt 0:10:30]} 23. Nxd7 {[%emt 0:04:52]} Qe3+ {[%emt 0:00:30]} 24. Qxe3 {[%emt 0:00:30]} Bxe3+ {[%emt 0:00:30]} 25. Kh1 {[%emt 0:00:00]} Nxd7 {[%emt 0:00:30]} 26. Bg4 {[%emt 0:00:00]} Rxf1+ {[%emt 0:00:30]} 27. Rxf1 {[%emt 0:00:11]} Nf8 {[%emt 0:00:00]} 0-1

[Event "Turkey IS Bank Super League 2017"]
[Site "Darica-Kocaeli"]
[Date "2017.07.30"]
[Round "5"]
[White "Ozbay, Ece"]
[Black "Celik, Eda"]
[Result "1-0"]
[ECO "B12"]
[WhiteElo "1970"]
[BlackElo "1939"]
[Annotator "NA"]
[PlyCount "115"]
[EventType "team-tourn"]
[EventCountry "TUR"]
[SourceTitle "playchess.com"]
[Source "ChessBase"]
[SourceQuality "1"]
[TimeControl "40/5400+30:1800+30"]

1. e4 {[%emt 0:00:30]} c6 {[%emt 0:01:00]} 2. d4 {[%emt 0:01:30]} d5 {[%emt 0:00:30]} 3. e5 {[%emt 0:00:00]} Bf5 {[%emt 0:00:30]} 4. Nf3 {[%emt 0:01:00]} e6 {[%emt 0:00:30]} 5. Be2 {[%emt 0:00:00]} Nd7 {[%emt 0:00:30] LiveBook: 2143 Games} 6. Be3 {[%emt 0:02:00]} h6 {[%emt 0:02:30]} 7. O-O {[%emt 0:04:30]} Ne7 {[%emt 0:00:30]} 8. Nbd2 $11 {[%emt 0:08:30]} Bh7 {[%emt 0:01:30]} 9. c3 {[%emt 0:07:30]} Ng6 {[%emt 0:03:30]} 10. b4 {[%emt 0:03:30]} f6 {[%emt 0:25:30]} 11. exf6 {[%emt 0:00:30]} gxf6 {[%emt 0:00:30]} 12. Bd3 {[%emt 0:07:30]} e5 {[%emt 0:03:30]} 13. Bxg6+ {[%emt 0:01:30]} Bxg6 {[%emt 0:00:30]} 14. Nh4 {[%emt 0:00:30]} Bf7 {[%emt 0:04:30]} 15. f4 {[%emt 0:03:30]} e4 {[%emt 0:00:30]} 16. f5 {[%emt 0:00:00]} Bd6 {[%emt 0:03:30]} 17. Ng6 {[%emt 0:16:00]} Bxg6 {[%emt 0:11:30]} 18. fxg6 {[%emt 0:00:30]} Qe7 {[%emt 0:01:30]} 19. Qh5 {[%emt 0:05:30]} Qg7 {[%emt 0:00:00]} 20. c4 {[%emt 0:02:30]} dxc4 {[%emt 0:11:00]} 21. Nxe4 {[%emt 0:01:30]} Be7 {[%emt 0:13:53]} 22. Rae1 {[%emt 0:12:30]} O-O-O {[%emt 0:01:20]} 23. Ng3 {[%emt 0:00:39]} Bxb4 {[%emt 0:05:43]} 24. Nf5 {[%emt 0:00:48]} Qg8 {[%emt 0:00:23]} 25. Rb1 {[%emt 0:00:03]} Ba3 {[%emt 0:00:57]} 26. Bc1 {[%emt 0:00:30]} Bf8 {[%emt 0:02:38]} 27. g7 {[%emt 0:00:30]} Rh7 {[%emt 0:00:00]} 28. gxf8=Q {[%emt 0:00:30]} Qxf8 {[%emt 0:00:10]} 29. Bxh6 {[%emt 0:03:34]} Qa3 {[%emt 0:02:21]} 30. Rf3 {[%emt 0:03:29]} Qxa2 {[%emt 0:02:15]} 31. Nd6+ {[%emt 0:02:04]} Kb8 {[%emt 0:00:05]} 32. Rff1 {[%emt 0:06:57]} Nb6 {[%emt 0:00:40]} 33. Nf7 {[%emt 0:05:31]} Rg8 {[%emt 0:01:50]} 34. g3 {[%emt 0:00:01]} Nd5 {[%emt 0:00:47]} 35. Rbe1 {[%emt 0:01:08]} Ka8 {[%emt 0:00:45]} 36. Nd6 {[%emt 0:00:42]} Re7 {[%emt 0:00:37]} 37. Rxe7 {[%emt 0:00:35]} Nxe7 {[%emt 0:00:05]} 38. Re1 {[%emt 0:00:21]} Qa3 {[%emt 0:00:56]} 39. Rxe7 {[%emt 0:00:34]} Qxd6 {[%emt 0:00:22]} 40. Re8+ {[%emt 0:00:51]} Rxe8 {[%emt 0:30:30]} 41. Qxe8+ {[%emt 0:30:30]} Qb8 {[%emt 0:00:00]} 42. Qxb8+ {[%emt 0:00:00]} Kxb8 {[%emt 0:00:00]} 43. Bd2 {[%emt 0:00:00]} Kc7 {[%emt 0:00:00]} 44. Kf2 {[%emt 0:00:00]} Kd6 {[%emt 0:00:00]} 45. Ke3 {[%emt 0:00:00]} Ke6 {[%emt 0:00:00]} 46. Kf4 {[%emt 0:00:00]} f5 {[%emt 0:00:00]} 47. Kg5 {[%emt 0:00:00]} b6 {[%emt 0:00:00]} 48. Kg6 {[%emt 0:00:00]} a5 {[%emt 0:00:00]} 49. h4 {[%emt 0:00:00]} a4 {[%emt 0:00:00]} 50. h5 {[%emt 0:00:00]} a3 {[%emt 0:00:00]} 51. h6 {[%emt 0:00:00]} a2 {[%emt 0:00:00]} 52. Bc3 {[%emt 0:00:00]} b5 {[%emt 0:00:00]} 53. h7 {[%emt 0:00:00]} b4 {[%emt 0:00:00]} 54. Ba1 {[%emt 0:00:00]} c3 {[%emt 0:00:00]} 55. h8=Q {[%emt 0:00:00]} c2 {[%emt 0:00:00]} 56. Qg8+ {[%emt 0:00:00]} Kd6 {[%emt 0:00:00]} 57. Qc4 {[%emt 0:00:00]} b3 {[%emt 0:00:00]} 58. Qc3 {[%emt 0:00:00]} 1-0

[Event "Turkey IS Bank Super League 2017"]
[Site "Darica-Kocaeli"]
[Date "2017.07.30"]
[Round "5"]
[White "Yassibag, Ipek Asli"]
[Black "Sade, Defne"]
[Result "1/2-1/2"]
[ECO "C53"]
[WhiteElo "1880"]
[BlackElo "1654"]
[Annotator "NA"]
[PlyCount "154"]
[EventType "team-tourn"]
[EventCountry "TUR"]
[SourceTitle "playchess.com"]
[Source "ChessBase"]
[SourceQuality "1"]
[TimeControl "40/5400+30:1800+30"]

1. e4 {[%emt 0:00:30]} e5 {[%emt 0:01:00]} 2. Nf3 {[%emt 0:00:30]} Nc6 {[%emt 0:00:30]} 3. Bc4 {[%emt 0:00:30]} Bc5 {[%emt 0:00:30]} 4. O-O {[%emt 0:00:30]} d6 {[%emt 0:00:30]} 5. c3 {[%emt 0:03:30]} Bb6 {[%emt 0:01:30]} 6. d4 {[%emt 0:02:30]} Bg4 {[%emt 0:03:30]} 7. d5 {[%emt 0:09:30]} Nce7 {[%emt 0:03:30]} 8. h3 $11 {[%emt 0:01:30]} Bd7 {[%emt 0:10:30]} 9. a4 {[%emt 0:04:30]} a6 {[%emt 0:00:30]} 10. a5 {[%emt 0:14:30]} Ba7 {[%emt 0:00:00]} 11. b4 {[%emt 0:05:30]} Nf6 {[%emt 0:02:00]} 12. Bd3 {[%emt 0:00:30]} O-O {[%emt 0:03:30]} 13. c4 {[%emt 0:02:30]} Ng6 {[%emt 0:02:30]} 14. Nc3 {[%emt 0:00:30]} Nh5 {[%emt 0:04:30]} 15. Ne2 {[%emt 0:07:30]} Qc8 {[%emt 0:09:30]} 16. Kh2 {[%emt 0:03:30]} h6 {[%emt 0:12:30]} 17. Ra3 {[%emt 0:04:30]} Re8 {[%emt 0:04:30]} 18. Rc3 {[%emt 0:03:30]} Qd8 {[%emt 0:13:30]} 19. c5 {[%emt 0:02:30]} Nh4 {[%emt 0:07:19]} 20. Nxh4 {[%emt 0:05:30]} Qxh4 {[%emt 0:00:09]} 21. Ng1 {[%emt 0:00:00]} g6 {[%emt 0:06:59]} 22. Nf3 {[%emt 0:03:00]} Qe7 {[%emt 0:02:51]} 23. c6 {[%emt 0:01:30]} bxc6 {[%emt 0:02:31]} 24. dxc6 {[%emt 0:00:00]} Bc8 {[%emt 0:01:26]} 25. Bxh6 {[%emt 0:01:00]} d5 {[%emt 0:01:14]} 26. Rb3 {[%emt 0:05:11]} dxe4 {[%emt 0:00:49]} 27. Bxe4 {[%emt 0:00:14]} Be6 {[%emt 0:00:00]} 28. Rb2 {[%emt 0:01:19]} Bc4 {[%emt 0:00:09]} 29. Bg5 {[%emt 0:01:06]} Qe6 {[%emt 0:01:59]} 30. Re1 {[%emt 0:01:23]} f5 {[%emt 0:00:44]} 31. Bb1 {[%emt 0:05:51]} e4 {[%emt 0:00:39]} 32. Qd7 {[%emt 0:01:57]} Qd6+ {[%emt 0:00:00]} 33. Qxd6 {[%emt 0:00:00]} cxd6 {[%emt 0:00:00]} 34. Nh4 {[%emt 0:00:00]} Kh7 {[%emt 0:00:00]} 35. Ba2 {[%emt 0:00:00]} d5 {[%emt 0:00:00]} 36. Bxc4 {[%emt 0:00:00]} dxc4 {[%emt 0:00:00]} 37. Rc1 {[%emt 0:00:00]} c3 {[%emt 0:00:00]} 38. Rbc2 {[%emt 0:00:00]} Bd4 {[%emt 0:00:00]} 39. Rd1 {[%emt 0:00:00]} Be5+ {[%emt 0:00:00]} 40. Kg1 {[%emt 0:00:00]} Rac8 {[%emt 0:10:11]} 41. Rd7+ {[%emt 0:12:59]} Ng7 {[%emt 0:00:30]} 42. f4 {[%emt 0:07:30]} exf3 {[%emt 0:00:30]} 43. Nxf3 {[%emt 0:00:00]} Rxc6 {[%emt 0:01:30]} 44. Nxe5 {[%emt 0:00:00]} Rxe5 {[%emt 0:00:30]} 45. Be7 {[%emt 0:00:30]} Re1+ {[%emt 0:18:16]} 46. Kh2 {[%emt 0:02:30]} Kg8 {[%emt 0:06:15]} 47. Bc5 {[%emt 0:01:30]} Ne6 {[%emt 0:00:30]} 48. Rxc3 {[%emt 0:00:30]} Nxc5 {[%emt 0:02:19]} 49. Rxc5 {[%emt 0:02:35]} Rxc5 {[%emt 0:01:37]} 50. bxc5 {[%emt 0:00:30]} Rc1 {[%emt 0:00:00]} 51. Rd6 {[%emt 0:01:33]} Kf7 {[%emt 0:00:00]} 52. Rxa6 {[%emt 0:02:02]} Rxc5 {[%emt 0:00:19]} 53. Ra8 {[%emt 0:00:17]} Rc3 {[%emt 0:00:02]} 54. a6 {[%emt 0:01:02]} Ra3 {[%emt 0:00:03]} 55. a7 {[%emt 0:00:50]} Kg7 {[%emt 0:00:07]} 56. h4 {[%emt 0:00:46]} Kh7 {[%emt 0:00:06]} 57. Kg1 {[%emt 0:00:22]} Ra2 {[%emt 0:00:30]} 58. Kh2 {[%emt 0:00:30]} Ra3 {[%emt 0:00:21]} 59. g3 {[%emt 0:02:44]} Kg7 {[%emt 0:01:40]} 60. Kg2 {[%emt 0:00:20]} Kh7 {[%emt 0:00:21]} 61. Kf2 {[%emt 0:01:03]} Kg7 {[%emt 0:00:10]} 62. Ke2 {[%emt 0:00:44]} Kh7 {[%emt 0:00:08]} 63. Kd2 {[%emt 0:00:14]} Kg7 {[%emt 0:00:18]} 64. Kc2 {[%emt 0:00:04]} Kh7 {[%emt 0:01:05]} 65. Kb2 {[%emt 0:00:30]} Ra6 {[%emt 0:00:00]} 66. Kc3 {[%emt 0:00:00]} Kg7 {[%emt 0:00:00]} 67. Kd4 {[%emt 0:01:03]} Ra5 {[%emt 0:00:11]} 68. Kc4 {[%emt 0:01:08]} Ra1 {[%emt 0:00:39]} 69. Kb5 {[%emt 0:00:25]} Rb1+ {[%emt 0:00:29]} 70. Kc5 {[%emt 0:00:29]} Rc1+ {[%emt 0:00:31]} 71. Kd6 {[%emt 0:00:13]} Rd1+ {[%emt 0:00:00]} 72. Ke5 {[%emt 0:00:09]} Re1+ {[%emt 0:00:17]} 73. Kf4 {[%emt 0:00:51]} Re4+ {[%emt 0:00:39]} 74. Kf3 {[%emt 0:00:30]} Ra4 {[%emt 0:00:00]} 75. Ke3 {[%emt 0:00:59]} Kh7 {[%emt 0:00:10]} 76. Kd3 {[%emt 0:01:15]} Kg7 {[%emt 0:00:10]} 77. Kc3 {[%emt 0:00:00]} Kh7 {[%emt 0:01:38]} 1/2-1/2

[Event "Turkey IS Bank Super League 2017"]
[Site "Darica-Kocaeli"]
[Date "2017.07.30"]
[Round "5"]
[White "Ayan, Bengu Sena"]
[Black "Yurdakul, Didem Nuray"]
[Result "1-0"]
[ECO "E09"]
[WhiteElo "1862"]
[BlackElo "1697"]
[Annotator "NA"]
[PlyCount "69"]
[EventType "team-tourn"]
[EventCountry "TUR"]
[SourceTitle "playchess.com"]
[Source "ChessBase"]
[SourceQuality "1"]
[TimeControl "40/5400+30:1800+30"]

1. d4 {[%emt 0:00:30]} d5 {[%emt 0:01:00]} 2. c4 {[%emt 0:00:30]} e6 {[%emt 0:00:30]} 3. Nf3 {[%emt 0:00:00]} Nf6 {[%emt 0:00:30]} 4. g3 {[%emt 0:01:00]} Be7 {[%emt 0:03:30]} 5. Bg2 {[%emt 0:00:00]} O-O {[%emt 0:00:30]} 6. O-O {[%emt 0:00:00]} c6 {[%emt 0:01:30]} 7. Qc2 {[%emt 0:00:30]} Nbd7 {[%emt 0:01:30]} 8. Nbd2 {[%emt 0:00:30]} b6 {[%emt 0:01:30]} 9. e4 {[%emt 0:00:30]} Bb7 {[%emt 0:00:00]} 10. b3 $11 {[%emt 0:16:30] LiveBook: 119 Games} Rc8 {[%emt 0:05:00]} 11. e5 {[%emt 0:04:30]} Ne8 {[%emt 0:00:30]} 12. Bb2 {[%emt 0:01:30]} Rc7 {[%emt 0:06:30]} 13. Rac1 {[%emt 0:04:30]} c5 {[%emt 0:12:30]} 14. Qb1 {[%emt 0:01:30]} Qa8 {[%emt 0:07:30]} 15. Ba3 {[%emt 0:08:30]} dxc4 {[%emt 0:07:30]} 16. bxc4 {[%emt 0:07:30]} Qd8 {[%emt 0:01:30]} 17. Rfe1 {[%emt 0:03:30]} cxd4 {[%emt 0:07:30]} 18. Bxe7 {[%emt 0:01:30]} Qxe7 {[%emt 0:00:00]} 19. Nxd4 {[%emt 0:10:30]} Bxg2 {[%emt 0:01:00]} 20. Kxg2 {[%emt 0:00:30]} Nc5 {[%emt 0:03:30]} 21. N2b3 {[%emt 0:02:30]} Rc8 {[%emt 0:06:30]} 22. Nxc5 {[%emt 0:02:30]} Rxc5 {[%emt 0:02:30]} 23. Qe4 {[%emt 0:01:30]} a6 {[%emt 0:07:30]} 24. a4 {[%emt 0:06:30]} Qa7 {[%emt 0:04:06]} 25. f3 {[%emt 0:03:30]} Nc7 {[%emt 0:01:40]} 26. Nb3 {[%emt 0:00:30]} f5 {[%emt 0:03:20]} 27. exf6 {[%emt 0:02:31]} Rf5 {[%emt 0:04:13]} 28. fxg7 {[%emt 0:00:29]} Kxg7 {[%emt 0:00:00]} 29. Nd4 {[%emt 0:03:04]} R5f6 {[%emt 0:00:47]} 30. Nc6 {[%emt 0:03:06]} Qa8 {[%emt 0:00:52]} 31. Qg4+ {[%emt 0:00:25]} Kh8 {[%emt 0:02:09]} 32. Ne5 {[%emt 0:00:21]} Qe8 {[%emt 0:01:01]} 33. Qd4 {[%emt 0:02:38]} Qa8 {[%emt 0:04:01]} 34. Re3 {[%emt 0:01:27]} Qd8 {[%emt 0:01:38]} 35. Nf7+ {[%emt 0:00:38]} 1-0